fUSD/lending_fUSD_20241222
["ID","MTS","AMOUNT","RATE_DAILY","PERIOD"]
[346270242,1734855049501,-4371.29,0.00019597,2]
[346270243,1734855049513,-500.0,0.00019597,2]
[346270244,1734855049524,-151.86271537,0.00019597,2]
[346270245,1734855049534,-859.75,0.00019597,2]
[346270246,1734855049544,-753.86,0.00019597,2]
[346270247,1734855049554,-500.0,0.00019597,2]
[346270248,1734855049565,-1455.36,0.00019597,2]
[346270249,1734855049575,-742.2,0.00019597,2]
[346270250,1734855049585,-1696.02,0.00019597,2]
[346270251,1734855049596,-3404.55,0.00019597,2]
[346270252,1734855049606,-1018.48,0.00019597,2]
[346270253,1734855049616,-998.42,0.00019597,2]
[346270254,1734855049626,-3373.62,0.00019597,2]
[346270255,1734855049636,-3080.5,0.00019597,2]
[346270256,1734855049646,-3333.49,0.00019597,2]
[346270257,1734855049656,-669.58,0.00019597,2]
[346270258,1734855049665,-500.0,0.00019597,2]
[346270259,1734855049676,-500.0,0.00019597,2]
[346270260,1734855049686,-10174.0,0.00019597,2]
[346270261,1734855049696,-500.0,0.00019597,2]
[346270262,1734855049706,-2311.35,0.00019597,2]
[346270263,1734855049716,-27833.87797781,0.00019599,2]
[346270264,1734855049726,-1000.0,0.00019621,2]
[346270265,1734855049735,-1985.5744,0.00019621,2]
[346270266,1734855049745,-27833.87797781,0.00019674,2]
[346270267,1734855049756,-166.95378809,0.00019698,2]
[346270268,1734855049766,-6253.74681108,0.000197,2]
[346270269,1734855049777,-502.2458679,0.00019721,2]
[346270270,1734855049787,-400.64273924,0.00019721,2]
[346270271,1734855049797,-502.69206894,0.00019721,2]
[346270272,1734855049806,-154.59613191,0.00019721,2]
[346270273,1734855049816,-503.91052173,0.00019721,2]
[346270274,1734855049826,-334.40024392,0.00019721,2]
[346270275,1734855049836,-187.36450885,0.00019721,2]
[346270276,1734855049846,-500.0,0.00019721,2]
[346270277,1734855049855,-500.0,0.00019721,2]
[346270278,1734855049865,-1511.62,0.00019721,2]
[346270279,1734855049875,-500.0,0.00019721,2]
[346270280,1734855049884,-500.0,0.00019721,2]
[346270281,1734855049893,-500.0,0.00019721,2]
[346270282,1734855049903,-781.42,0.00019721,2]
[346270283,1734855049913,-500.0,0.00019721,2]
[346270284,1734855049923,-500.0,0.00019721,2]
[346270285,1734855049933,-500.0,0.00019721,2]
[346270286,1734855049943,-500.0,0.00019721,2]
[346270287,1734855049953,-500.0,0.00019721,2]
[346270288,1734855049963,-647.8,0.00019721,2]
[346270289,1734855049972,-150.0,0.00019726,2]
[346270290,1734855049982,-1000.0,0.00019726,4]
[346270291,1734855049991,-1000.0,0.00019726,5]
[346270292,1734855050001,-1000.0,0.00019726,6]
[346270293,1734855050014,-1000.0,0.00019726,7]
[346270294,1734855050023,-1000.0,0.00019726,8]
[346270295,1734855050033,-1000.0,0.00019726,9]
[346270296,1734855050043,-1000.0,0.00019726,10]
[346270297,1734855050052,-1000.0,0.00019726,11]
[346270298,1734855050062,-1000.0,0.00019726,12]
[346270299,1734855050071,-1000.0,0.00019726,13]
[346270300,1734855050080,-1000.0,0.00019726,14]
[346270301,1734855050090,-1000.0,0.00019726,15]
[346270302,1734855050100,-1000.0,0.00019726,16]
[346270303,1734855050109,-1000.0,0.00019726,17]
[346270304,1734855050119,-1000.0,0.00019726,18]
[346270305,1734855050128,-1000.0,0.00019726,19]
[346270306,1734855050138,-1000.0,0.00019726,20]
[346270307,1734855050148,-1000.0,0.00019726,21]
[346270308,1734855050157,-1000.0,0.00019726,22]
[346270309,1734855050167,-1000.0,0.00019726,23]
[346270310,1734855050176,-1000.0,0.00019726,24]
[346270311,1734855050186,-805.74525284,0.00019726,25]
[346270312,1734855050196,-2771.21,0.00019726,2]
[346270313,1734855050206,-970.24,0.00019726,2]
[346270314,1734855050216,-606.63,0.00019726,2]
[346270315,1734855050225,-1835.89,0.00019726,2]
[346270316,1734855050235,-500.0,0.00019726,2]
[346270317,1734855050247,-1138.53,0.00019726,2]
[346270318,1734855050260,-934.38,0.00019726,2]
[346270319,1734855050270,-5958.67,0.00019726,2]
[346270320,1734855050282,-1949.65,0.00019726,2]
[346270321,1734855050291,-520.64,0.00019726,2]
[346270322,1734855050301,-990.2,0.00019726,2]
[346270323,1734855050311,-4125.4,0.00019726,2]
[346270324,1734855050321,-849.45,0.00019726,2]
[346270325,1734855050331,-1435.34,0.00019726,2]
[346270326,1734855050340,-500.0,0.00019726,2]
[346270327,1734855050349,-517.55,0.00019726,2]
[346270328,1734855050359,-5482.78,0.00019726,2]
[346270329,1734855050368,-728.48,0.00019726,2]
[346270330,1734855050377,-500.0,0.00019726,2]
[346270331,1734855050387,-881.7,0.00019726,2]
[346270332,1734855050396,-594.22,0.00019726,2]
[346270333,1734855050407,-635.47,0.00019726,2]
[346270334,1734855050417,-294.25470679,0.00019726,2]
[346270335,1734855050427,-1487.98,0.00019726,2]
[346270336,1734855050436,-728.42,0.00019726,2]
[346270337,1734855050445,-195.66,0.00019726,2]
[346270338,1734855050455,-912.01,0.00019726,2]
[346270339,1734855050464,-150.0,0.00019727,2]
[346270340,1734855050474,-150.0,0.00019727,2]
[346270341,1734855050484,-150.0,0.00019733,2]
[346270342,1734855050493,-150.0,0.00019735,2]
[346270343,1734855050502,-150.0,0.00019738,2]
[346270344,1734855050515,-150.0,0.00019741,2]
[346270345,1734855050525,-150.0,0.00019743,2]
[346270346,1734855050534,-150.0,0.00019744,2]
[346270347,1734855050544,-323.56640914,0.00019749,2]
[346270348,1734855050554,-27833.87797781,0.0001975,2]
[346270349,1734855050564,-202.0,0.0001975,2]
[346270350,1734855050574,-202.0,0.0001975,2]
[346270351,1734855050583,-204.0,0.0001975,2]
[346270352,1734855050593,-150.0,0.00019752,2]
[346270353,1734855050603,-150.0,0.00019754,2]
[346270354,1734855050614,-150.0,0.00019756,2]
[346270355,1734855050623,-150.0,0.00019757,2]
[346270356,1734855050633,-150.0,0.0001976,2]
[346270357,1734855050643,-150.0,0.0001976,2]
[346270358,1734855050655,-150.0,0.0001976,2]
[346270359,1734855050665,-150.0,0.00019761,2]
[346270360,1734855050675,-300.0,0.00019761,2]
[346270361,1734855050684,-150.0,0.00019763,2]
[346270362,1734855050694,-150.0,0.00019767,2]
[346270363,1734855050703,-34202.8977,0.0001977,2]
[346270364,1734855050713,-150.0,0.00019778,2]
[346270365,1734855050722,-150.0,0.00019778,2]
[346270366,1734855050732,-150.0,0.00019779,2]
[346270367,1734855050741,-150.0,0.00019779,2]
[346270368,1734855050750,-150.0,0.00019784,2]
[346270369,1734855050762,-150.0,0.00019789,2]
[346270370,1734855050772,-150.0,0.00019789,2]
[346270371,1734855050781,-150.0,0.00019793,2]
[346270372,1734855050791,-150.0,0.00019795,2]
[346270373,1734855050801,-150.0,0.00019796,2]
[346270374,1734855050958,-150.0,0.00019796,2]
[346270375,1734855050968,-150.0,0.00019796,2]
[346270376,1734855050977,-150.0,0.00019797,2]
[346270377,1734855050986,-150.0,0.00019799,2]
[346270378,1734855050996,-300.0,0.00019799,2]
[346270379,1734855051004,-666.0,0.00019799,2]
[346270380,1734855051016,-1447.182,0.000198,2]
[346270381,1734855051025,-174.121,0.000198,2]
[346270382,1734855051034,-150.0,0.000198,2]
[346270383,1734855051044,-150.0,0.00019811,2]
[346270384,1734855051053,-150.0,0.00019821,2]
[346270385,1734855051062,-150.0,0.00019822,2]
[346270386,1734855051071,-150.0,0.00019824,2]
[346270387,1734855051080,-150.0,0.00019824,2]
[346270388,1734855051089,-27833.87797781,0.00019825,2]
[346270389,1734855051098,-150.0,0.00019826,2]
[346270390,1734855051107,-150.0,0.00019828,2]
[346270391,1734855051116,-150.0,0.00019831,2]
[346270392,1734855051125,-150.0,0.00019832,2]
[346270393,1734855051135,-150.0,0.00019837,2]
[346270394,1734855051144,-500.0,0.00019839,2]
[346270395,1734855051153,-500.0,0.0001984,2]
[346270396,1734855051163,-500.0,0.0001984,2]
[346270397,1734855051181,-150.0,0.00019841,2]
[346270398,1734855051190,-150.0,0.00019844,2]
[346270399,1734855051199,-165.70227259,0.00019846,2]
[346270400,1734855051208,-150.0,0.00019846,2]
[346270401,1734855051217,-150.0,0.0001985,2]
[346270402,1734855051226,-300.0,0.00019855,2]
[346270403,1734855051240,-666.0,0.00019855,2]
[346270404,1734855051249,-600.0,0.00019856,2]
[346270405,1734855051259,-500.0,0.00019856,2]
[346270406,1734855051269,-150.0,0.00019856,2]
[346270407,1734855051279,-150.0,0.00019857,2]
[346270408,1734855051288,-150.0,0.00019858,2]
[346270409,1734855051298,-150.0,0.00019861,2]
[346270410,1734855051307,-150.0,0.00019863,2]
[346270411,1734855051317,-150.0,0.00019865,2]
[346270412,1734855051326,-150.0,0.00019867,2]
[346270413,1734855051335,-150.0,0.00019867,2]
[346270414,1734855051344,-156.602173,0.00019868,2]
[346270415,1734855051352,-500.0,0.00019868,2]
[346270416,1734855051362,-2737.02,0.00019868,2]
[346270417,1734855051371,-500.0,0.00019868,2]
[346270418,1734855051380,-744.81,0.00019868,2]
[346270419,1734855051390,-1357.81,0.00019868,2]
[346270420,1734855051399,-1111.42,0.00019868,2]
[346270421,1734855051407,-500.0,0.00019868,2]
[346270422,1734855051416,-1092.88,0.00019868,2]
[346270423,1734855051426,-500.0,0.00019868,2]
[346270424,1734855051435,-878.83,0.00019868,2]
[346270425,1734855051444,-1004.01,0.00019868,2]
[346270426,1734855051453,-2114.07,0.00019868,2]
[346270427,1734855051462,-1844.99,0.00019868,2]
[346270428,1734855051470,-1503.06,0.00019868,2]
[346270429,1734855051479,-13134.24,0.00019868,2]
[346270430,1734855051488,-1399.55,0.00019868,2]
[346270431,1734855051497,-943.36,0.00019868,2]
[346270432,1734855051506,-500.0,0.00019868,2]
[346270433,1734855051517,-1109.07,0.00019868,2]
[346270434,1734855051526,-500.0,0.00019868,2]
[346270435,1734855051535,-1585.07,0.00019868,2]
[346270436,1734855051545,-1782.11,0.00019868,2]
[346270437,1734855051555,-1063.16,0.00019868,2]
[346270438,1734855051564,-4849.8,0.00019868,2]
[346270439,1734855051574,-1603.62,0.00019868,2]
[346270440,1734855051583,-500.0,0.00019869,2]
[346270441,1734855051592,-500.0,0.00019869,2]
[346270442,1734855051602,-500.0,0.00019869,2]
[346270443,1734855051611,-500.0,0.00019869,2]
[346270444,1734855051620,-500.0,0.00019869,2]
[346270445,1734855051630,-500.0,0.00019869,2]
[346270446,1734855051639,-414.45677532,0.00019869,2]
[346270447,1734855051648,-500.0,0.00019869,2]
[346270448,1734855051657,-500.0,0.00019869,2]
[346270449,1734855051666,-500.0,0.00019869,2]
[346270450,1734855051675,-500.0,0.00019869,2]
[346270451,1734855051685,-500.0,0.00019869,2]
[346270452,1734855051694,-502.81444908,0.00019869,2]
[346270453,1734855051703,-500.0,0.00019869,2]
[346270454,1734855051712,-500.0,0.00019869,2]
[346270455,1734855051722,-500.0,0.00019869,2]
[346270456,1734855051731,-500.0,0.00019869,2]
[346270457,1734855051740,-500.0,0.00019869,2]
[346270458,1734855051749,-500.0,0.00019869,2]
[346270459,1734855051760,-503.78489118,0.00019869,2]
[346270460,1734855051769,-508.2448163,0.00019869,2]
[346270461,1734855051778,-500.0,0.00019869,2]
[346270462,1734855051788,-500.0,0.00019869,2]
[346270463,1734855051797,-500.0,0.00019869,2]
[346270464,1734855051806,-502.52791862,0.00019869,2]
[346270465,1734855051815,-815.5,0.00019869,2]
[346270466,1734855051824,-505.57256153,0.00019869,2]
[346270467,1734855051833,-500.0,0.00019869,2]
[346270468,1734855051843,-500.0,0.00019869,2]
[346270469,1734855051851,-504.55489268,0.00019869,2]
[346270470,1734855051861,-506.49508603,0.00019869,2]
[346270471,1734855051869,-500.0,0.00019869,2]
[346270472,1734855051878,-500.0,0.00019869,2]
[346270473,1734855051887,-500.0,0.00019869,2]
[346270474,1734855051896,-500.0,0.00019869,2]
[346270475,1734855051905,-500.0,0.00019869,2]
[346270476,1734855051914,-500.0,0.00019869,2]
[346270477,1734855051923,-500.0,0.00019869,2]
[346270478,1734855051932,-500.0,0.00019869,2]
[346270479,1734855051941,-597.2,0.00019869,2]
[346270480,1734855051950,-500.0,0.00019869,2]
[346270481,1734855051959,-500.0,0.00019869,2]
[346270482,1734855051968,-500.0,0.00019869,2]
[346270483,1734855051978,-501.38983517,0.00019869,2]
[346270484,1734855051986,-500.0,0.00019869,2]
[346270485,1734855051996,-500.0,0.00019869,2]
[346270486,1734855052004,-500.0,0.00019869,2]
[346270487,1734855052016,-500.0,0.00019869,2]
[346270488,1734855052025,-501.51566609,0.00019869,2]
[346270489,1734855052034,-500.0,0.00019869,2]
[346270490,1734855052043,-504.88244364,0.00019869,2]
[346270491,1734855052051,-501.56486231,0.00019869,2]
[346270492,1734855052061,-500.0,0.00019869,2]
[346270493,1734855052069,-500.0,0.00019869,2]
[346270494,1734855052078,-500.0,0.00019869,2]
[346270495,1734855052087,-500.0,0.00019869,2]
[346270496,1734855052097,-500.0,0.00019869,2]
[346270497,1734855052107,-500.0,0.00019869,2]
[346270498,1734855052116,-500.0,0.00019869,2]
[346270499,1734855052125,-500.0,0.00019869,2]
[346270500,1734855052134,-500.0,0.00019869,2]
[346270501,1734855052143,-370.81989,0.00019869,2]
[346270502,1734855052153,-500.0,0.00019869,2]
[346270503,1734855052163,-500.0,0.00019869,2]
[346270504,1734855052172,-506.38465763,0.00019869,2]
[346270505,1734855052181,-500.0,0.00019869,2]
[346270506,1734855052190,-275.23425214,0.00019869,2]
[346270507,1734855052199,-500.0,0.00019869,2]
[346270508,1734855052208,-230.94993866,0.00019869,2]
[346270509,1734855052217,-500.0,0.00019869,2]
[346270510,1734855052227,-500.0,0.00019869,2]
[346270511,1734855052239,-500.0,0.00019869,2]
[346270512,1734855052248,-304.86260889,0.00019869,2]
[346270513,1734855052257,-500.0,0.00019869,2]
[346270514,1734855052269,-500.0,0.00019869,2]
[346270515,1734855052279,-500.0,0.00019869,2]
[346270516,1734855052289,-416.06746466,0.00019869,2]
[346270517,1734855052298,-500.0,0.00019869,2]
[346270518,1734855052307,-500.0,0.00019869,2]
[346270519,1734855052316,-500.0,0.00019869,2]
[346270520,1734855052326,-500.0,0.00019869,2]
[346270521,1734855052335,-500.0,0.00019869,2]
[346270522,1734855052344,-500.0,0.00019869,2]
[346270523,1734855052353,-200.0,0.00019869,2]
[346270524,1734855052362,-500.0,0.00019869,2]
[346270525,1734855052372,-500.0,0.00019869,2]
[346270526,1734855052381,-500.0,0.00019869,2]
[346270527,1734855052390,-500.0,0.00019869,2]
[346270528,1734855052401,-500.0,0.00019869,2]
[346270529,1734855052410,-521.84011,0.00019869,2]
[346270530,1734855052419,-500.0,0.00019869,2]
[346270531,1734855052428,-500.0,0.00019869,2]
[346270532,1734855052437,-500.0,0.00019869,2]
[346270533,1734855052446,-500.0,0.00019869,2]
[346270534,1734855052455,-500.0,0.00019869,2]
[346270535,1734855052465,-492.0,0.00019869,2]
[346270536,1734855052474,-500.0,0.00019869,2]
[346270537,1734855052483,-500.0,0.00019869,2]
[346270538,1734855052492,-367.12985799,0.00019869,2]
[346270539,1734855052502,-500.0,0.00019869,2]
[346270540,1734855052513,-500.0,0.00019869,2]
[346270541,1734855052522,-982.45,0.00019869,2]
[346270542,1734855052531,-500.0,0.00019869,2]
[346270543,1734855052540,-500.0,0.00019869,2]
[346270544,1734855052549,-500.0,0.00019869,2]
[346270545,1734855052559,-530.18,0.00019869,2]
[346270546,1734855052568,-500.0,0.00019869,2]
[346270547,1734855052578,-500.0,0.00019869,2]
[346270548,1734855052587,-500.0,0.00019869,2]
[346270549,1734855052597,-500.0,0.00019869,2]
[346270550,1734855052606,-500.0,0.00019869,2]
[346270551,1734855052615,-500.0,0.00019869,2]
[346270552,1734855052624,-500.0,0.00019869,2]
[346270553,1734855052634,-500.0,0.00019869,2]
[346270554,1734855052644,-500.0,0.00019869,2]
[346270555,1734855052653,-500.0,0.00019869,2]
[346270556,1734855052663,-500.0,0.00019869,2]
[346270557,1734855052672,-181.59753365,0.00019869,2]
[346270558,1734855052681,-500.0,0.00019869,2]
[346270559,1734855052690,-500.0,0.00019869,2]
[346270560,1734855052699,-511.0807118,0.00019869,2]
[346270561,1734855052708,-612.92,0.00019869,2]
[346270562,1734855052717,-500.0,0.00019869,2]
[346270563,1734855052726,-500.0,0.00019869,2]
[346270564,1734855052735,-500.0,0.00019869,2]
[346270565,1734855052744,-500.0,0.00019869,2]
[346270566,1734855052753,-500.0,0.00019869,2]
[346270567,1734855052764,-1160.1,0.00019869,2]
[346270568,1734855052773,-500.0,0.00019869,2]
[346270569,1734855052782,-500.0,0.00019869,2]
[346270570,1734855052792,-344.29,0.00019869,2]
[346270571,1734855052801,-500.97,0.00019869,2]
[346270572,1734855052810,-500.0,0.00019869,2]
[346270573,1734855052818,-500.0,0.00019869,2]
[346270574,1734855052827,-500.0,0.00019869,2]
[346270575,1734855052836,-592.68212234,0.00019869,2]
[346270576,1734855052845,-500.0,0.00019869,2]
[346270577,1734855052854,-500.0,0.00019869,2]
[346270578,1734855052863,-500.0,0.00019869,2]
[346270579,1734855052873,-500.0,0.00019869,2]
[346270580,1734855052882,-500.0,0.00019869,2]
[346270581,1734855052891,-500.0,0.00019869,2]
[346270582,1734855052900,-500.0,0.00019869,2]
[346270583,1734855052909,-500.0,0.00019869,2]
[346270584,1734855052918,-500.0,0.00019869,2]
[346270585,1734855052927,-500.0,0.00019869,2]
[346270586,1734855052936,-500.0,0.00019869,2]
[346270587,1734855052945,-500.0,0.00019869,2]
[346270588,1734855052954,-500.0,0.00019869,2]
[346270589,1734855052964,-795.12,0.00019869,2]
[346270590,1734855052973,-500.0,0.00019869,2]
[346270591,1734855052982,-713.25,0.00019869,2]
[346270592,1734855052991,-514.28068037,0.00019869,2]
[346270593,1734855053001,-500.0,0.00019869,2]
[346270594,1734855053010,-500.0,0.00019869,2]
[346270595,1734855053019,-500.0,0.00019869,2]
[346270596,1734855053028,-500.0,0.00019869,2]
[346270597,1734855053037,-500.0,0.00019869,2]
[346270598,1734855053046,-402.74,0.00019869,2]
[346270599,1734855053055,-500.0,0.00019869,2]
[346270600,1734855053063,-500.0,0.00019869,2]
[346270601,1734855053072,-500.0,0.00019869,2]
[346270602,1734855053081,-500.0,0.00019869,2]
[346270603,1734855053091,-500.0,0.00019869,2]
[346270604,1734855053101,-450.0,0.00019869,2]
[346270605,1734855053110,-500.0,0.00019869,2]
[346270606,1734855053119,-359.14802239,0.00019869,2]
[346270607,1734855053128,-500.0,0.00019869,2]
[346270608,1734855053137,-522.93,0.00019869,2]
[346270609,1734855053146,-500.0,0.00019869,2]
[346270610,1734855053155,-500.0,0.00019869,2]
[346270611,1734855053164,-985.97,0.00019869,2]
[346270612,1734855053173,-500.0,0.00019869,2]
[346270613,1734855053183,-532.75,0.00019869,2]
[346270614,1734855053192,-500.0,0.00019869,2]
[346270615,1734855053201,-500.0,0.00019869,2]
[346270616,1734855053210,-346.24145324,0.00019869,2]
[346270617,1734855053219,-500.0,0.00019869,2]
[346270618,1734855053227,-500.0,0.00019869,2]
[346270619,1734855053237,-566.42,0.00019869,2]
[346270620,1734855053248,-537.0,0.00019869,2]
[346270621,1734855053257,-500.0,0.00019869,2]
[346270622,1734855053267,-500.0,0.00019869,2]
[346270623,1734855053276,-500.0,0.00019869,2]
[346270624,1734855053286,-500.0,0.00019869,2]
[346270625,1734855053295,-500.0,0.00019869,2]
[346270626,1734855053303,-1000.0,0.00019869,2]
[346270627,1734855053313,-500.0,0.00019869,2]
[346270628,1734855053323,-500.0,0.00019869,2]
[346270629,1734855053332,-500.0,0.00019869,2]
[346270630,1734855053341,-630.82,0.00019869,2]
[346270631,1734855053350,-500.0,0.00019869,2]
[346270632,1734855053359,-917.9,0.00019869,2]
[346270633,1734855053368,-512.02,0.00019869,2]
[346270634,1734855053377,-500.0,0.00019869,2]
[346270635,1734855053386,-500.0,0.00019869,2]
[346270636,1734855053396,-500.0,0.00019869,2]
[346270637,1734855053405,-500.0,0.00019869,2]
[346270638,1734855053414,-500.0,0.00019869,2]
[346270639,1734855053423,-1296.46,0.00019869,2]
[346270640,1734855053432,-500.0,0.00019869,2]
[346270641,1734855053441,-700.0,0.00019869,2]
[346270642,1734855053451,-500.0,0.00019869,2]
[346270643,1734855053461,-1631.25,0.00019869,2]
[346270644,1734855053470,-925.38,0.00019869,2]
[346270645,1734855053480,-500.0,0.00019869,2]
[346270646,1734855053489,-994.83,0.00019869,2]
[346270647,1734855053498,-500.0,0.00019869,2]
[346270648,1734855053509,-500.0,0.00019869,2]
[346270649,1734855053518,-500.0,0.00019869,2]
[346270650,1734855053528,-500.0,0.00019869,2]
[346270651,1734855053537,-500.0,0.00019869,2]
[346270652,1734855053546,-500.0,0.00019869,2]
[346270653,1734855053555,-524.13,0.00019869,2]
[346270654,1734855053564,-500.0,0.00019869,2]
[346270655,1734855053573,-4719.36,0.00019869,2]
[346270656,1734855053583,-500.0,0.00019869,2]
[346270657,1734855053592,-594.57854947,0.00019869,2]
[346270658,1734855053601,-500.0,0.00019869,2]
[346270659,1734855053610,-500.0,0.00019869,2]
[346270660,1734855053619,-500.0,0.00019869,2]
[346270661,1734855053628,-500.0,0.00019869,2]
[346270662,1734855053638,-500.0,0.00019869,2]
[346270663,1734855053647,-800.92,0.00019869,2]
[346270664,1734855053657,-1359.44,0.00019869,2]
[346270665,1734855053666,-500.0,0.00019869,2]
[346270666,1734855053675,-1808.99,0.00019869,2]
[346270667,1734855053684,-500.0,0.00019869,2]
[346270668,1734855053693,-500.0,0.00019869,2]
[346270669,1734855053702,-2544.73,0.00019869,2]
[346270670,1734855053711,-500.0,0.00019869,2]
[346270671,1734855053720,-653.22,0.00019869,2]
[346270672,1734855053729,-500.0,0.00019869,2]
[346270673,1734855053739,-578.71,0.00019869,2]
[346270674,1734855053747,-1444.38,0.00019869,2]
[346270675,1734855053756,-981.27,0.00019869,2]
[346270676,1734855053766,-500.0,0.00019869,2]
[346270677,1734855053776,-500.0,0.00019869,2]
[346270678,1734855053786,-500.0,0.00019869,2]
[346270679,1734855053795,-500.0,0.00019869,2]
[346270680,1734855053804,-500.0,0.00019869,2]
[346270681,1734855053813,-5165.01,0.00019869,2]
[346270682,1734855053822,-500.0,0.00019869,2]
[346270683,1734855053830,-522.34296257,0.00019869,2]
[346270684,1734855053839,-523.18,0.00019869,2]
[346270685,1734855053848,-2178.13,0.00019869,2]
[346270686,1734855053856,-1513.6,0.00019869,2]
[346270687,1734855053865,-500.0,0.00019869,2]
[346270688,1734855053874,-500.0,0.00019869,2]
[346270689,1734855053883,-500.0,0.00019869,2]
[346270690,1734855053892,-739.57,0.00019869,2]
[346270691,1734855053901,-500.0,0.00019869,2]
[346270692,1734855053910,-3347.27,0.00019869,2]
[346270693,1734855053919,-1163.81,0.00019869,2]
[346270694,1734855054067,-500.0,0.00019869,2]
[346270695,1734855054077,-500.0,0.00019869,2]
[346270696,1734855054087,-974.75,0.00019869,2]
[346270697,1734855054096,-500.0,0.00019869,2]
[346270698,1734855054106,-615.64,0.00019869,2]
[346270699,1734855054115,-500.0,0.00019869,2]
[346270700,1734855054124,-500.0,0.00019869,2]
[346270701,1734855054133,-2085.14,0.00019869,2]
[346270702,1734855054143,-500.0,0.00019869,2]
[346270703,1734855054152,-500.0,0.00019869,2]
[346270704,1734855054161,-500.0,0.00019869,2]
[346270705,1734855054170,-500.0,0.00019869,2]
[346270706,1734855054180,-500.0,0.00019869,2]
[346270707,1734855054189,-500.0,0.00019869,2]
[346270708,1734855054198,-3217.37,0.00019869,2]
[346270709,1734855054208,-500.0,0.00019869,2]
[346270710,1734855054217,-500.0,0.00019869,2]
[346270711,1734855054226,-250.24775741,0.00019869,2]
[346270712,1734855054237,-500.0,0.00019869,2]
[346270713,1734855054247,-4593.45,0.00019869,2]
[346270714,1734855054257,-8260.82,0.00019869,2]
[346270715,1734855054269,-723.41,0.00019869,2]
[346270716,1734855054279,-500.0,0.00019869,2]
[346270717,1734855054289,-500.0,0.00019869,2]
[346270718,1734855054298,-500.0,0.00019869,2]
[346270719,1734855054307,-500.0,0.00019869,2]
[346270720,1734855054316,-500.0,0.00019869,2]
[346270721,1734855054326,-1296.18,0.00019869,2]
[346270722,1734855054335,-500.0,0.00019869,2]
[346270723,1734855054344,-666.0,0.00019869,2]
[346270724,1734855054353,-500.0,0.00019869,2]
[346270725,1734855054363,-718.06,0.00019869,2]
[346270726,1734855054372,-500.0,0.00019869,2]
[346270727,1734855054381,-1628.06,0.00019869,2]
[346270728,1734855054390,-500.0,0.00019869,2]
[346270729,1734855054399,-500.0,0.00019869,2]
[346270730,1734855054408,-500.0,0.00019869,2]
[346270731,1734855054417,-500.0,0.00019869,2]
[346270732,1734855054426,-309.94813458,0.00019869,2]
[346270733,1734855054436,-192.80469628,0.00019869,2]
[346270734,1734855054445,-3376.03,0.00019869,2]
[346270735,1734855054454,-500.0,0.00019869,2]
[346270736,1734855054464,-500.0,0.0001987,2]
[346270737,1734855054473,-500.0,0.0001987,2]
[346270738,1734855054482,-500.0,0.0001987,2]
[346270739,1734855054491,-461.56,0.0001987,2]
[346270740,1734855054500,-500.0,0.0001987,2]
[346270741,1734855054509,-500.0,0.0001987,2]